bitfinex/quotes_BTCUSD_20220212
["timestamp","ask_amount","ask_price","bid_price","bid_amount"]
[1644647628282,0.78760383,42167.0,42166.0,0.13191575]
[1644647628480,0.78760383,42167.0,42166.0,0.11822282]
[1644647629123,0.85,42165.0,42146.0,0.0033]
[1644647629330,0.85,42165.0,42152.0,0.0011]
[1644647629331,0.059344,42155.0,42152.0,0.0011]
[1644647629526,0.65,42153.0,42151.0,0.58036423]
[1644647629723,0.65,42153.0,42146.0,0.0033]
[1644647629724,0.1589309,42152.0,42146.0,0.0033]
[1644647629925,0.65,42151.0,42147.0,0.02100023]
[1644647630125,0.0474,42150.0,42147.0,0.02100023]
[1644647630324,0.17471013,42150.0,42147.0,0.02100023]
[1644647630524,0.17471013,42150.0,42145.0,0.0044]
[1644647630525,0.645,42149.0,42145.0,0.0044]
[1644647630725,0.0474,42148.0,42145.0,0.0044]
[1644647630925,0.3,42147.0,42145.0,0.0044]
[1644647631124,0.65,42144.0,42143.0,0.00066508]
[1644647631324,0.7974,42144.0,42143.0,0.00066508]
[1644647631524,1.09824426,42144.0,42143.0,0.00066508]
[1644647631723,1.09824426,42144.0,42139.0,0.00405356]
[1644647631724,0.65,42143.0,42125.0,0.0011]
[1644647631932,0.05936149,42134.0,42121.0,0.01]
[1644647632129,0.3474,42133.0,42121.0,0.01]
[1644647632333,0.65,42132.0,42109.0,0.0600331]
[1644647632529,0.05,42127.0,42111.0,0.05]
[1644647632796,0.05,42127.0,42106.0,0.00093638]
[1644647632797,0.25982213,42112.0,42106.0,0.00093638]
[1644647632989,0.0474,42111.0,42110.0,0.00044496]
[1644647633387,0.05939221,42114.0,42111.0,0.65]
[1644647633589,0.059383,42120.0,42110.0,0.00044496]
[1644647633787,0.1208,42122.0,42110.0,0.00044496]
[1644647633788,0.0424,42119.0,42110.0,0.00044496]
[1644647633988,0.0474,42118.0,42110.0,0.00044496]
[1644647634288,0.0474,42119.0,42117.0,0.19004434]
[1644647634491,0.91687399,42132.0,42117.0,0.24004434]
[1644647634688,0.91687399,42132.0,42117.0,0.19004434]
[1644647634887,0.91687399,42132.0,42120.0,0.05]
[1644647634888,0.69,42132.0,42120.0,0.05]
[1644647635088,0.06830779,42129.0,42120.0,0.08161195]
[1644647635488,0.05936151,42135.0,42124.0,0.26689986]
[1644647635689,0.1703,42139.0,42124.0,0.26689986]
[1644647635888,0.059361,42136.0,42124.0,0.26689986]
[1644647636086,0.22965651,42139.0,42126.0,0.05]
[1644647636287,0.0474,42139.0,42126.0,0.05]
[1644647636521,0.0474,42139.0,42131.0,0.22416695]
[1644647636522,0.07595234,42138.0,42131.0,0.22416695]
[1644647636721,0.19808963,42140.0,42131.0,0.22416695]
[1644647636921,0.19808963,42140.0,42128.0,0.05]
[1644647637125,0.19808963,42140.0,42132.0,0.00046149]
[1644647637522,0.0004614,42141.0,42132.0,0.00046149]
[1644647637924,0.0004614,42141.0,42138.0,0.07024372]
[1644647638127,0.01724,42151.0,42138.0,0.29546301]
[1644647638128,0.059342,42150.0,42138.0,0.29546301]
[1644647638328,0.00046141,42141.0,42139.0,0.35136489]
[1644647638525,0.00046141,42141.0,42140.0,0.29332129]
[1644647638722,0.00046141,42141.0,42140.0,0.61061428]
[1644647639123,0.00046141,42141.0,42140.0,0.29332129]
[1644647639326,0.34272715,42148.0,42140.0,0.29332129]
[1644647639525,0.00031578,42143.0,42140.0,0.29332129]
[1644647639827,0.00031578,42143.0,42140.0,0.0474]
[1644647640572,0.44272715,42148.0,42140.0,0.0474]
[1644647640771,0.00046188,42144.0,42141.0,0.2033893]
[1644647640972,0.00046188,42144.0,42142.0,0.0474]
[1644647641372,0.00046188,42144.0,42143.0,0.30182813]
[1644647641572,0.00046188,42144.0,42143.0,0.34922813]
[1644647641773,0.26005556,42155.0,42149.0,0.244503]
[1644647641972,0.26005556,42155.0,42149.0,0.291903]
[1644647642375,0.21129347,42157.0,42149.0,0.291903]
[1644647642774,0.21139347,42157.0,42149.0,0.291903]
[1644647642973,0.0001,42158.0,42149.0,0.291903]
[1644647643174,0.00046184,42155.0,42149.0,0.291903]
[1644647643574,0.07809193,42152.0,42149.0,0.0474]
[1644647643777,0.00046184,42155.0,42144.0,0.31851032]
[1644647644027,0.0001,42157.0,42144.0,0.36591032]
[1644647644028,0.25448784,42157.0,42144.0,0.36591032]
[1644647644429,0.25448784,42157.0,42144.0,0.0474]
[1644647644430,0.00046185,42152.0,42144.0,0.0474]
[1644647644631,0.25270288,42151.0,42144.0,0.0474]
[1644647645231,0.0829523,42145.0,42144.0,0.0474]
[1644647646030,0.00046185,42150.0,42144.0,0.0474]
[1644647646431,0.25270288,42151.0,42144.0,0.0474]
[1644647646631,0.00031578,42149.0,42144.0,0.0474]
[1644647647131,0.00031578,42149.0,42144.0,0.3028738]
[1644647647333,0.00031578,42149.0,42144.0,0.30302288]
[1644647647536,0.00031578,42149.0,42144.0,0.60928823]
[1644647647782,0.1,42156.0,42144.0,0.60928823]
[1644647647783,0.1,42156.0,42144.0,0.30302288]
[1644647647977,0.00031578,42149.0,42144.0,0.49897915]
[1644647648179,0.00031578,42149.0,42144.0,0.66240927]
[1644647648381,0.00031578,42149.0,42148.0,0.05]
[1644647648580,0.1186252,42175.0,42148.0,0.05]
[1644647648581,0.0001,42167.0,42149.0,0.00039453]
[1644647648778,0.0001,42173.0,42158.0,0.05]
[1644647648977,0.0001,42173.0,42159.0,0.0474]
[1644647649177,0.26288557,42169.0,42160.0,0.0474]
[1644647649378,0.26288557,42169.0,42167.0,0.0001]
[1644647649379,0.0001,42168.0,42167.0,0.0001]
[1644647649583,0.33320837,42168.0,42167.0,0.0001]
[1644647649882,0.33320837,42168.0,42167.0,0.00023603]
[1644647650084,0.25747105,42168.0,42167.0,0.22004212]
[1644647650282,0.65,42167.0,42152.0,0.00014908]
[1644647650478,0.11865357,42161.0,42154.0,0.00013602]
[1644647650681,0.26297047,42160.0,42154.0,0.00013602]
[1644647650880,0.31297047,42160.0,42154.0,0.00013602]
[1644647651079,0.2173937,42159.0,42154.0,0.00013602]
[1644647651278,0.29731992,42159.0,42154.0,0.00013602]
[1644647651524,0.34763501,42159.0,42154.0,0.00013602]
[1644647651823,0.44763501,42159.0,42154.0,0.00013602]
[1644647652428,0.05933078,42157.0,42154.0,0.00013602]
[1644647652728,0.35649272,42156.0,42154.0,0.00013602]
[1644647652923,0.29589258,42155.0,42154.0,0.00013602]
[1644647653123,0.2,42156.0,42154.0,0.00013602]
[1644647653328,0.3,42157.0,42154.0,0.00013602]
[1644647653525,0.20128884,42159.0,42154.0,0.00013602]
[1644647653526,0.08038884,42159.0,42154.0,0.00013602]
[1644647653724,0.22992622,42159.0,42154.0,0.00013602]
[1644647654025,0.00046262,42158.0,42154.0,0.00013602]
[1644647654928,0.12992622,42159.0,42154.0,0.00013602]
[1644647655128,0.0597927,42158.0,42154.0,0.00013602]
[1644647655378,0.35,42157.0,42154.0,0.00013602]
[1644647655572,0.4,42157.0,42154.0,0.00013602]
[1644647655773,0.5,42157.0,42154.0,0.00013602]
[1644647656173,0.2,42157.0,42154.0,0.00013602]
[1644647656773,0.1,42157.0,42154.0,0.00013602]
[1644647656974,0.159331,42157.0,42154.0,0.00013602]
[1644647658274,0.1,42157.0,42154.0,0.00013602]
[1644647658475,0.1,42157.0,42154.0,0.0002851]
[1644647658774,0.05,42157.0,42154.0,0.00013602]
[1644647659022,0.05,42157.0,42154.0,0.0002851]
[1644647659223,0.05,42157.0,42154.0,0.00013602]
[1644647659423,0.05,42157.0,42154.0,0.0002851]
[1644647659624,0.51498553,42158.0,42154.0,0.00013602]
[1644647659824,0.51498553,42158.0,42149.0,0.00039453]
[1644647659825,0.65,42157.0,42149.0,0.00039453]
[1644647660225,0.8,42157.0,42149.0,0.00039453]
[1644647660428,0.07697471,42151.0,42149.0,0.00039453]
[1644647662779,0.31744382,42151.0,42149.0,0.00039453]
[1644647662973,0.46966527,42150.0,42149.0,0.00039453]
[1644647663174,0.56966527,42150.0,42149.0,0.00039453]
[1644647663375,0.66966527,42150.0,42149.0,0.00039453]
[1644647663572,0.71944754,42150.0,42149.0,0.00039453]
[1644647663976,0.47879224,42150.0,42149.0,0.00039453]
[1644647664375,0.77879224,42150.0,42149.0,0.00039453]
[1644647665975,0.00042142,42152.0,42149.0,0.00039453]
[1644647666176,0.42971204,42150.0,42149.0,0.00039453]
[1644647666386,0.37711204,42150.0,42149.0,0.00039453]
[1644647666626,0.49580574,42150.0,42149.0,0.00039453]
[1644647667028,1.01946417,42150.0,42141.0,0.33]
[1644647667228,0.19280083,42136.0,42128.0,0.24600375]
[1644647667627,0.35216493,42136.0,42124.0,0.3967]
[1644647667829,0.39280083,42136.0,42121.0,0.05]
[1644647668030,0.39280083,42136.0,42118.0,0.05]
[1644647668227,0.07177809,42130.0,42124.0,0.24991475]
[1644647668826,0.07177809,42130.0,42127.0,0.22430284]
[1644647669426,0.518736,42135.0,42127.0,0.22430284]
[1644647669427,0.1,42135.0,42127.0,0.22430284]
[1644647669629,0.1,42135.0,42127.0,0.27430284]
[1644647669827,0.05,42136.0,42129.0,0.05]
[1644647670127,0.37611993,42141.0,42127.0,0.22430284]
[1644647670128,0.05,42137.0,42127.0,0.22430284]
[1644647670388,0.29385801,42141.0,42134.0,0.2484626]
[1644647670591,0.06330845,42135.0,42134.0,0.2484626]
[1644647670792,0.06330845,42135.0,42130.0,0.00046299]
[1644647671790,0.06330845,42135.0,42128.0,0.2006148]
[1644647671989,0.06330845,42135.0,42130.0,0.00046299]
[1644647672191,0.19785662,42134.0,42130.0,0.00046299]
[1644647672390,0.109365,42134.0,42130.0,0.00046299]
[1644647672588,0.1,42134.0,42130.0,0.00046299]
[1644647672787,0.05,42133.0,42130.0,0.00046299]
[1644647672988,0.16330845,42135.0,42128.0,0.2006148]
[1644647672989,0.05,42135.0,42129.0,0.05]
[1644647673193,0.05,42135.0,42130.0,0.00046299]
[1644647673389,0.2,42136.0,42135.0,0.25769286]
[1644647673588,0.1,42136.0,42135.0,0.25769286]
[1644647673788,0.05,42138.0,42135.0,0.25769286]
[1644647674223,0.259357,42139.0,42135.0,0.25769286]
[1644647674824,0.159357,42139.0,42135.0,0.25769286]
[1644647675425,0.1,42139.0,42135.0,0.25769286]
[1644647675625,0.05,42139.0,42135.0,0.25769286]
[1644647675831,0.54082966,42141.0,42135.0,0.00014891]
[1644647676026,0.118721,42140.0,42135.0,0.00014891]
[1644647676227,0.118721,42140.0,42134.0,0.00036546]
[1644647676626,0.118721,42140.0,42132.0,0.00014891]
[1644647676826,0.118721,42140.0,42134.0,0.24890287]
[1644647677026,0.059357,42139.0,42134.0,0.24890287]
[1644647679580,0.27022322,42141.0,42133.0,0.00014891]
[1644647679878,0.17022322,42141.0,42133.0,0.00014891]
[1644647680078,0.17022322,42141.0,42132.0,0.0505361]
[1644647680280,0.05935604,42140.0,42132.0,0.05014891]
[1644647680479,0.05935604,42140.0,42132.0,0.0505361]
[1644647680681,0.17022322,42141.0,42132.0,0.28965672]
[1644647680983,0.17022322,42141.0,42132.0,0.28950781]
[1644647680984,0.1,42141.0,42132.0,0.28950781]
[1644647681181,0.05,42141.0,42132.0,0.28950781]
[1644647681382,0.05,42141.0,42132.0,0.28926953]
[1644647681635,0.15935115,42143.0,42132.0,0.28971348]
[1644647681829,0.15935115,42143.0,42132.0,0.28956457]
[1644647682030,0.19853801,42140.0,42132.0,0.28956457]
[1644647682232,0.29853801,42140.0,42132.0,0.28971348]
[1644647682431,0.55123395,42140.0,42132.0,0.28956457]
[1644647682630,0.55123395,42140.0,42132.0,0.28912062]
[1644647682834,0.55123395,42140.0,42132.0,0.28956457]
[1644647682835,0.60123395,42140.0,42132.0,0.28956457]
[1644647683032,0.60123395,42140.0,42132.0,0.05044395]
[1644647683332,0.059356,42139.0,42132.0,0.05044395]
[1644647683731,0.059356,42139.0,42132.0,0.05]
[1644647683934,0.059356,42139.0,42132.0,0.05044395]
[1644647684933,0.059356,42139.0,42132.0,0.05]
[1644647685135,0.059356,42139.0,42132.0,0.04538762]
[1644647685381,0.17808245,42139.0,42132.0,0.04538762]
[1644647685978,0.07257617,42133.0,42132.0,0.04538762]
[1644647686182,0.07257617,42133.0,42129.0,0.00014891]
[1644647686387,0.07257617,42133.0,42132.0,0.00038762]
[1644647686684,0.17257617,42133.0,42132.0,0.00038762]
[1644647687180,0.54023459,42133.0,42132.0,0.00038762]
[1644647687380,0.94023459,42133.0,42128.0,0.00014891]
[1644647687583,0.33644535,42127.0,42124.0,0.00014891]
[1644647687780,0.53644535,42127.0,42123.0,0.0022]
[1644647687981,0.83644535,42127.0,42124.0,0.00014891]
[1644647688280,0.83644535,42127.0,42123.0,0.0022]
[1644647688480,0.05937817,42126.0,42123.0,0.0022]
[1644647688685,0.11876017,42126.0,42123.0,0.0022]
[1644647689327,0.05937817,42126.0,42123.0,0.0022]
[1644647690126,0.2340457,42125.0,42123.0,0.0022]
[1644647690327,0.25739775,42124.0,42123.0,0.0022]
[1644647690727,0.25239775,42124.0,42123.0,0.0022]
[1644647691127,0.4340457,42125.0,42123.0,0.0022]
[1644647692130,0.54339005,42124.0,42123.0,0.0022]
[1644647692431,0.4,42124.0,42123.0,0.0022]
[1644647692796,0.059368,42131.0,42124.0,0.53885136]
[1644647692987,0.708736,42135.0,42124.0,0.53885136]
[1644647692988,0.59,42135.0,42124.0,0.53885136]
[1644647693185,0.59,42135.0,42128.0,0.045]
[1644647693385,0.3,42136.0,42128.0,0.045]
[1644647693585,0.5272255,42136.0,42128.0,0.045]
[1644647693787,0.5272255,42136.0,42128.0,0.04514891]
[1644647694189,0.0593647,42135.0,42128.0,0.04514891]
[1644647694388,0.13819248,42135.0,42128.0,0.04514891]
[1644647694789,0.13819248,42135.0,42129.0,0.00046061]
[1644647694989,0.13819248,42135.0,42129.0,0.00060952]
[1644647695390,0.23819248,42135.0,42129.0,0.00060952]
[1644647695590,0.059365,42134.0,42129.0,0.00060952]
[1644647695892,0.059365,42134.0,42129.0,0.00014891]
[1644647695893,0.109365,42134.0,42129.0,0.00014891]
[1644647696095,0.109365,42134.0,42131.0,0.045]
[1644647696096,0.05,42134.0,42131.0,0.045]
[1644647696292,0.12882778,42135.0,42131.0,0.045]
[1644647696536,0.17882778,42135.0,42131.0,0.04514891]
[1644647696933,0.05,42135.0,42134.0,0.045]
[1644647697137,0.05,42138.0,42134.0,0.045]
[1644647697635,0.25923472,42143.0,42134.0,0.045]
[1644647698034,0.07883364,42137.0,42134.0,0.045]
[1644647698234,0.07883364,42137.0,42132.0,0.00014891]
[1644647698235,0.23993337,42135.0,42132.0,0.04514891]
[1644647698434,0.07883364,42137.0,42132.0,0.04546063]
[1644647698635,0.07883364,42137.0,42135.0,0.045]
[1644647698836,0.07883364,42137.0,42135.0,0.03381081]
[1644647699038,0.12883364,42137.0,42135.0,0.03381081]
[1644647699234,0.17883364,42137.0,42135.0,0.03381081]
[1644647699635,0.43632436,42137.0,42135.0,0.03381081]
[1644647699837,0.53632436,42137.0,42134.0,0.03381081]
[1644647700135,0.07883364,42137.0,42134.0,0.03381081]
[1644647701075,0.07883364,42137.0,42135.0,0.20782691]
[1644647701276,0.07883364,42137.0,42134.0,0.03381081]
[1644647702479,0.07883364,42137.0,42135.0,0.21229521]
[1644647702678,0.07883364,42137.0,42134.0,0.03381081]
[1644647703487,0.12883364,42137.0,42134.0,0.03381081]
[1644647703681,0.07883364,42137.0,42134.0,0.03381081]
[1644647704128,0.36079175,42141.0,42134.0,0.03381081]
[1644647704331,0.36079175,42141.0,42138.0,0.03381081]
[1644647704529,0.46079175,42141.0,42138.0,0.03381081]
[1644647704929,0.46079175,42141.0,42136.0,0.03381081]
[1644647705128,0.53186835,42141.0,42136.0,0.03381081]
[1644647706129,0.2710766,42141.0,42136.0,0.03381081]
[1644647706331,0.1710766,42141.0,42136.0,0.03381081]
[1644647706534,0.1,42141.0,42136.0,0.03381081]
[1644647706840,0.5537,42145.0,42140.0,0.03381081]
[1644647707032,0.512095,42149.0,42140.0,0.03381081]
[1644647707033,0.69356091,42149.0,42140.0,0.03381081]
[1644647707232,0.35018773,42152.0,42140.0,0.03381081]
[1644647707233,0.06408388,42151.0,42140.0,0.03381081]
[1644647707432,0.35018773,42152.0,42143.0,0.03381081]
[1644647707635,0.06602543,42151.0,42148.0,0.22928718]
[1644647708078,0.1,42153.0,42148.0,0.22928718]
[1644647708281,0.0001,42152.0,42148.0,0.22928718]
[1644647708678,0.24996152,42150.0,42148.0,0.22928718]
[1644647708878,0.0001,42149.0,42148.0,0.22928718]
[1644647709681,0.173738,42159.0,42148.0,0.22928718]
[1644647709682,0.25006152,42152.0,42148.0,0.22928718]
[1644647709881,0.0001,42151.0,42148.0,0.22928718]
[1644647710082,0.07315326,42150.0,42148.0,0.229426]
[1644647710282,0.0001,42149.0,42148.0,0.229426]
[1644647710483,0.0004146,42152.0,42148.0,0.229426]
[1644647710685,0.0004146,42152.0,42151.0,0.03381081]
[1644647710686,0.0003146,42152.0,42151.0,0.03381081]
[1644647710888,0.0003146,42152.0,42151.0,0.03394963]
[1644647711087,0.0003146,42152.0,42149.0,0.3]
[1644647711285,0.0003146,42152.0,42150.0,0.40384738]
[1644647711528,0.0001,42163.0,42162.0,0.25313567]
[1644647712330,0.0001,42168.0,42162.0,0.25313567]
[1644647712530,0.0001,42169.0,42162.0,0.25313567]
[1644647712729,0.0001,42173.0,42162.0,0.44041158]
[1644647712929,0.00046045,42167.0,42162.0,0.44041158]
[1644647713131,0.00046045,42167.0,42163.0,0.1897]
[1644647713331,0.00046045,42167.0,42165.0,0.1423]
[1644647713528,0.29546045,42175.0,42174.0,0.22480655]
[1644647713729,0.0001,42175.0,42166.0,0.0474]
[1644647714032,0.009502,42176.0,42166.0,0.0474]
[1644647714033,0.08818245,42170.0,42166.0,0.0474]
[1644647714230,0.0001,42169.0,42158.0,0.0474]
[1644647714829,0.0001,42169.0,42164.0,0.20722323]
[1644647715029,0.0001,42169.0,42160.0,0.059304]
[1644647715283,0.00041425,42169.0,42160.0,0.059304]
[1644647715479,0.00041425,42169.0,42158.0,0.0474]
[1644647715680,0.059318,42168.0,42158.0,0.0474]
[1644647715880,0.28008144,42167.0,42158.0,0.0474]
[1644647716082,0.0001,42166.0,42165.0,0.1922442]
[1644647716480,0.00056212,42169.0,42165.0,0.1922442]
[1644647717479,0.0001,42169.0,42159.0,0.25628075]
[1644647717680,0.00056216,42169.0,42160.0,0.36635466]
[1644647717880,0.07630009,42163.0,42160.0,0.30704966]
[1644647718080,0.0001,42162.0,42158.0,0.0474]
[1644647718480,0.0001,42162.0,42160.0,0.20906545]
[1644647719530,0.0001,42168.0,42160.0,0.20906545]
[1644647719932,0.0001,42170.0,42160.0,0.20906545]
[1644647720129,0.00031391,42169.0,42160.0,0.20906545]
[1644647720330,0.00031391,42169.0,42165.0,0.00103471]
[1644647720530,0.08691155,42168.0,42165.0,0.00076906]
[1644647720728,0.0001,42167.0,42165.0,0.00076906]
[1644647722776,0.00046178,42169.0,42165.0,0.00076906]
[1644647723572,0.08232448,42168.0,42165.0,0.00076906]
[1644647723774,0.0001,42167.0,42165.0,0.00076906]
[1644647724779,0.0001,42167.0,42165.0,9.06e-06]
[1644647724780,0.05,42166.0,42165.0,9.06e-06]
[1644647724976,0.3975,42166.0,42165.0,9.06e-06]
[1644647725181,5.094e-05,42164.0,42156.0,0.00046192]
[1644647725377,0.04745094,42164.0,42156.0,0.00046192]
[1644647725677,0.19568684,42161.0,42156.0,0.00046192]
[1644647725875,0.19568684,42161.0,42153.0,0.24903248]
[1644647725876,0.05,42159.0,42153.0,0.24903248]
[1644647726075,0.07522405,42154.0,42153.0,0.24903248]
[1644647726377,0.045,42159.0,42154.0,0.09012909]
[1644647726638,0.3,42160.0,42154.0,0.09012909]
[1644647726639,0.045,42155.0,42154.0,0.09012909]
[1644647727138,0.43385077,42155.0,42154.0,0.09012909]
[1644647727334,0.58385077,42155.0,42154.0,0.09012909]
[1644647728938,0.58385077,42155.0,42152.0,0.00046188]
[1644647728939,0.65,42154.0,42152.0,0.00046188]
[1644647729140,0.46541317,42153.0,42152.0,0.00046188]
[1644647729336,0.61541317,42153.0,42152.0,0.00046188]
[1644647729536,0.83700926,42153.0,42136.0,0.21759928]
[1644647729736,0.118709,42144.0,42136.0,0.21759928]
[1644647729937,0.06851799,42138.0,42135.0,0.18989424]
[1644647730576,0.045,42144.0,42135.0,0.18989424]
[1644647730778,0.05,42143.0,42135.0,0.18989424]
[1644647730975,0.05,42143.0,42136.0,0.25954352]
[1644647731175,0.45395622,42146.0,42136.0,0.25954352]
[1644647731375,0.2,42146.0,42136.0,0.25954352]
[1644647731576,0.0001,42148.0,42145.0,0.1920888]
[1644647731776,0.0001,42148.0,42146.0,0.07621285]
[1644647731976,0.0001,42152.0,42146.0,0.07621285]
[1644647732175,0.045,42158.0,42146.0,0.07621285]
[1644647732377,0.24818902,42158.0,42146.0,0.2873922]
[1644647732575,0.0001,42157.0,42146.0,0.07621285]
[1644647732777,0.045,42151.0,42145.0,0.1920888]
[1644647733275,0.0451,42151.0,42145.0,0.1920888]
[1644647733477,0.0001,42151.0,42146.0,0.00039466]
[1644647733677,0.095,42155.0,42146.0,0.00039466]
[1644647733877,0.0001,42154.0,42151.0,0.06948259]
[1644647734130,0.045,42155.0,42151.0,0.06948259]
[1644647734429,0.045,42155.0,42147.0,0.21382808]
[1644647734430,0.045,42152.0,42145.0,0.1920888]
[1644647734627,0.045,42152.0,42151.0,0.00039461]
[1644647735632,0.0451,42152.0,42145.0,0.1920888]
[1644647735830,0.05934,42151.0,42149.0,0.0004043]
[1644647736028,0.0001,42150.0,42149.0,0.0004043]
[1644647736428,0.18970511,42150.0,42149.0,0.0004043]
[1644647736628,0.23970511,42150.0,42149.0,0.0004043]
[1644647736830,0.28970511,42150.0,42138.0,0.00117789]
[1644647737028,0.104347,42147.0,42141.0,0.00161753]
[1644647737230,0.154347,42147.0,42141.0,0.00161753]
[1644647737430,0.05,42146.0,42141.0,0.00161753]
[1644647737629,0.104347,42147.0,42141.0,0.00161753]
[1644647737873,0.109347,42147.0,42141.0,0.00161753]
[1644647738072,0.109347,42147.0,42138.0,0.00117789]
[1644647738377,0.059347,42147.0,42142.0,0.00040437]
[1644647738573,0.0001,42148.0,42143.0,0.30767968]
[1644647738777,0.0001,42149.0,42143.0,0.30767968]
[1644647739176,0.045,42145.0,42140.0,0.0002]
[1644647739377,0.045,42145.0,42144.0,0.00040435]
[1644647740376,0.045,42145.0,42140.0,0.08208204]
[1644647740982,0.045,42145.0,42140.0,0.0002]
[1644647741636,0.12429548,42146.0,42140.0,0.0002]
[1644647741637,0.045,42141.0,42140.0,0.0002]
[1644647741840,0.045,42141.0,42126.0,0.3233474]
[1644647741841,0.6,42140.0,42130.0,0.00014891]
[1644647742038,0.07564026,42138.0,42129.0,0.30778648]
[1644647742236,0.07564026,42138.0,42129.0,0.30763757]
[1644647742436,0.07564026,42138.0,42125.0,0.32466767]
[1644647742437,0.045,42137.0,42125.0,0.32466767]
[1644647742638,0.2380412,42134.0,42126.0,0.39307374]
[1644647743037,0.2380412,42134.0,42129.0,0.00046044]
[1644647743438,0.2380412,42134.0,42129.0,0.00060935]
[1644647743842,0.2880412,42134.0,42129.0,0.00046044]
[1644647744043,0.3380412,42134.0,42126.0,0.00014891]
[1644647744237,0.3380412,42134.0,42129.0,0.00046044]
[1644647744439,0.4380412,42134.0,42129.0,0.00046044]
[1644647744938,0.2,42134.0,42129.0,0.00046044]
[1644647745139,0.19818431,42134.0,42129.0,0.29892628]
[1644647745387,0.0001,42140.0,42129.0,0.29943567]
[1644647745587,0.0001,42143.0,42130.0,0.1423]
[1644647745784,0.0001,42144.0,42130.0,0.20179291]
[1644647745983,0.0001,42144.0,42130.0,0.05949291]
[1644647746188,0.22309358,42142.0,42141.0,0.00147156]
[1644647746384,0.22319358,42142.0,42141.0,0.00147156]
[1644647746585,0.26819358,42142.0,42141.0,0.00147156]
[1644647746785,0.04496153,42142.0,42141.0,0.00147156]
[1644647747785,0.05,42143.0,42141.0,0.00147156]
[1644647748186,0.04496153,42144.0,42141.0,0.00147156]
[1644647748590,0.11947804,42144.0,42141.0,0.00147156]
[1644647748790,0.16947804,42144.0,42141.0,0.00147156]
[1644647749025,0.20878645,42142.0,42141.0,0.00132441]
[1644647749226,0.05,42143.0,42141.0,0.00132441]
[1644647749425,0.03540357,42142.0,42141.0,0.00132441]
[1644647750226,0.28819351,42142.0,42141.0,0.00132441]
[1644647750927,0.33819351,42142.0,42139.0,0.00014645]
[1644647751329,0.07783664,42134.0,42130.0,0.07914435]
[1644647751528,0.07783664,42134.0,42132.0,0.00058589]
[1644647751727,0.17783664,42134.0,42132.0,0.00058589]
[1644647752331,0.1,42134.0,42132.0,0.00058589]
[1644647752631,0.05,42134.0,42131.0,0.00045986]
[1644647752877,0.05,42134.0,42131.0,0.00060877]
[1644647753078,0.05,42134.0,42131.0,0.00045986]
[1644647753679,0.04496153,42136.0,42133.0,0.07283341]
[1644647753884,0.13550357,42142.0,42133.0,0.06783341]
[1644647754082,0.03550357,42142.0,42134.0,0.30095884]
[1644647754282,0.03540357,42142.0,42135.0,0.0474]
[1644647754681,0.03540357,42142.0,42137.0,0.22052473]
[1644647754883,0.03540357,42142.0,42137.0,0.26792473]
[1644647755085,0.03540357,42142.0,42137.0,0.0474]
[1644647755086,0.0001,42142.0,42137.0,0.0474]
[1644647755281,0.04506153,42142.0,42137.0,0.0474]
[1644647756083,0.0001,42142.0,42138.0,0.56334735]
[1644647756283,0.04496153,42147.0,42144.0,0.00028259]
[1644647757346,0.04506153,42147.0,42144.0,0.00028259]
[1644647757548,0.12295237,42147.0,42144.0,0.00028259]
[1644647757745,0.0001,42146.0,42144.0,0.00028259]
[1644647758346,0.09506153,42147.0,42144.0,0.00028259]
[1644647758545,0.0001,42146.0,42144.0,0.00028259]
[1644647758945,0.23841795,42146.0,42144.0,0.00028259]
[1644647759149,0.0001,42145.0,42144.0,0.00028259]
[1644647759645,0.06927851,42145.0,42144.0,0.00028259]
[1644647759845,0.0001,42145.0,42144.0,0.00028259]
[1644647760885,0.12768866,42145.0,42144.0,0.00028259]
[1644647761085,0.12768866,42145.0,42144.0,0.00039575]
[1644647761289,0.42768866,42145.0,42144.0,0.00039575]
[1644647761489,0.12768866,42145.0,42144.0,0.00039575]
[1644647761692,0.52768866,42145.0,42144.0,0.00039575]
[1644647761891,0.79610982,42145.0,42144.0,0.00039575]
[1644647763589,0.14227408,42145.0,42144.0,0.00039575]
[1644647763789,0.04227408,42145.0,42144.0,0.00039575]
[1644647764036,0.04217408,42145.0,42144.0,0.00039575]
[1644647764634,0.04217408,42145.0,42144.0,0.26917852]
[1644647765838,0.04217408,42145.0,42144.0,0.26933018]
[1644647766434,0.0001,42157.0,42144.0,0.26933018]
[1644647766635,0.009507,42158.0,42145.0,0.0474]
[1644647766837,0.009507,42158.0,42154.0,0.19572714]
[1644647766838,0.04496153,42157.0,42154.0,0.19572714]
[1644647767035,0.0001,42157.0,42154.0,0.19599196]
[1644647767235,0.009507,42158.0,42154.0,0.19599196]
[1644647767882,0.03346,42162.0,42154.0,0.19599196]
[1644647768085,0.08114752,42161.0,42154.0,0.19599196]
[1644647768284,0.0001,42160.0,42154.0,0.19645033]
[1644647768483,0.0001,42160.0,42154.0,0.43645033]
[1644647769182,0.04506153,42161.0,42154.0,0.43645033]
[1644647769385,0.0001,42161.0,42154.0,0.43599196]
[1644647769582,0.0001,42161.0,42155.0,0.00045837]
[1644647769783,0.0001,42161.0,42155.0,0.00072319]
[1644647769984,0.26740474,42159.0,42155.0,0.00072319]
[1644647770183,0.0001,42158.0,42155.0,0.00072319]
[1644647770584,0.0001,42158.0,42155.0,0.00026482]
[1644647773635,0.0001,42159.0,42155.0,0.00020482]
[1644647773839,0.04496153,42156.0,42155.0,0.00020482]
[1644647774137,0.04496153,42156.0,42155.0,0.00013118]
[1644647774434,0.04506153,42156.0,42155.0,0.00013118]
[1644647774638,0.76484537,42156.0,42155.0,0.00013118]
[1644647774835,0.86484537,42156.0,42155.0,0.00013118]
[1644647775035,0.56474132,42156.0,42155.0,0.00013118]
[1644647775289,0.86474132,42156.0,42155.0,0.00013118]
[1644647775490,0.86474132,42156.0,42134.0,0.20152874]
[1644647775491,0.65,42153.0,42134.0,0.20152874]
[1644647775684,0.65,42153.0,42130.0,0.00014891]
[1644647775685,0.3001,42152.0,42147.0,0.00183377]
[1644647775884,0.04496153,42148.0,42147.0,0.00183377]
[1644647776083,0.52620327,42148.0,42147.0,0.00183377]
[1644647776282,0.67620327,42148.0,42147.0,0.00183377]
[1644647776483,0.61684127,42148.0,42140.0,0.07934806]
[1644647776682,0.04496153,42144.0,42140.0,0.07934806]
[1644647776884,0.44893149,42148.0,42140.0,0.07934806]
[1644647777083,0.04496153,42143.0,42142.0,0.23453838]
[1644647777484,0.04496153,42145.0,42142.0,0.23453838]